[Event "Early-Titled-Tuesday-Blitz-February-27-2024"]
[Site "Chess.com"]
[Date "2024.02.27"]
[Round "11"]
[White "nicolasbatista3"]
[Black "SaiAgni_98"]
[Result "1/2-1/2"]
[WhiteElo "2435"]
[BlackElo "2554"]
[TimeControl "180+1"]
[EndTime "10:05:43 PST"]
[Termination "Game drawn by repetition"]

1. d4 {[%clk 0:03:00.9]} 1... d5 {[%clk 0:02:58.4]} 2. c4 {[%clk 0:03:00.9]}
2... e6 {[%clk 0:02:58.7]} 3. Nc3 {[%clk 0:03:00.7]} 3... h6 {[%clk 0:02:57.3]}
4. cxd5 {[%clk 0:02:57.2]} 4... exd5 {[%clk 0:02:58.2]} 5. Bf4 {[%clk
0:02:57.1]} 5... Nf6 {[%clk 0:02:57.6]} 6. e3 {[%clk 0:02:56.8]} 6... Bd6 {[%clk
0:02:57.8]} 7. Nge2 {[%clk 0:02:44.3]} 7... O-O {[%clk 0:02:56.9]} 8. g3 {[%clk
0:02:39.6]} 8... Bb4 {[%clk 0:02:28.4]} 9. h4 {[%clk 0:02:34.5]} 9... Ne4 {[%clk
0:02:18]} 10. Bg2 {[%clk 0:02:32.8]} 10... Bf5 {[%clk 0:02:10.3]} 11. a3 {[%clk
0:02:26.7]} 11... Bxc3+ {[%clk 0:01:51.1]} 12. Nxc3 {[%clk 0:02:27.6]} 12... Nc6
{[%clk 0:01:48.8]} 13. Nxe4 {[%clk 0:02:22.1]} 13... Bxe4 {[%clk 0:01:45.9]} 14.
Bxe4 {[%clk 0:02:20.2]} 14... dxe4 {[%clk 0:01:46.8]} 15. g4 {[%clk 0:02:12.9]}
15... Qd5 {[%clk 0:01:45.1]} 16. g5 {[%clk 0:02:10.8]} 16... Kh7 {[%clk
0:01:15.5]} 17. Qh5 {[%clk 0:01:50.8]} 17... Qf5 {[%clk 0:00:55.4]} 18. Qe2
{[%clk 0:01:18.8]} 18... Nxd4 {[%clk 0:00:49.3]} 19. exd4 {[%clk 0:01:14.6]}
19... Qxf4 {[%clk 0:00:49.6]} 20. gxh6 {[%clk 0:01:15.2]} 20... Qxh6 {[%clk
0:00:43.3]} 21. Rg1 {[%clk 0:00:46.7]} 21... Rfe8 {[%clk 0:00:37.5]} 22. Rg5
{[%clk 0:00:46.4]} 22... Kg8 {[%clk 0:00:35.3]} 23. Qe3 {[%clk 0:00:44.4]} 23...
Qc6 {[%clk 0:00:24.4]} 24. Rc1 {[%clk 0:00:26.8]} 24... Qh6 {[%clk 0:00:23]} 25.
Ke2 {[%clk 0:00:24.2]} 25... c6 {[%clk 0:00:22.1]} 26. Rcg1 {[%clk 0:00:24.1]}
26... Re6 {[%clk 0:00:18]} 27. Rxg7+ {[%clk 0:00:21]} 27... Qxg7 {[%clk
0:00:18.9]} 28. Rxg7+ {[%clk 0:00:21.7]} 28... Kxg7 {[%clk 0:00:19.5]} 29. Qg5+
{[%clk 0:00:21.2]} 29... Rg6 {[%clk 0:00:17.4]} 30. Qe5+ {[%clk 0:00:21]} 30...
Kh7 {[%clk 0:00:17.6]} 31. Qxe4 {[%clk 0:00:20.4]} 31... Kg7 {[%clk 0:00:18]}
32. Qe5+ {[%clk 0:00:20.3]} 32... Rf6 {[%clk 0:00:15.8]} 33. Qg5+ {[%clk
0:00:18.9]} 33... Rg6 {[%clk 0:00:15.9]} 34. Qe5+ {[%clk 0:00:19.5]} 34... Rf6
{[%clk 0:00:12.6]} 35. Qg5+ {[%clk 0:00:19.5]} 35... Rg6 {[%clk 0:00:12.9]} 36.
Qe5+ {[%clk 0:00:20]} 1/2-1/2

[Event "Early-Titled-Tuesday-Blitz-February-27-2024"]
[Site "Chess.com"]
[Date "2024.02.27"]
[Round "11"]
[White "bazar-wokzal"]
[Black "JJDAREK"]
[Result "1-0"]
[WhiteElo "2630"]
[BlackElo "2409"]
[TimeControl "180+1"]
[EndTime "10:05:43 PST"]
[Termination "bazar-wokzal won on time"]

1. e4 {[%clk 0:02:59.6]} 1... d6 {[%clk 0:02:59.9]} 2. f4 {[%clk 0:02:53.8]}
2... g6 {[%clk 0:02:58.8]} 3. Nc3 {[%clk 0:02:53.1]} 3... Bg7 {[%clk 0:02:59.1]}
4. Nf3 {[%clk 0:02:52.9]} 4... Nf6 {[%clk 0:02:53.6]} 5. e5 {[%clk 0:02:52.9]}
5... dxe5 {[%clk 0:02:51.1]} 6. fxe5 {[%clk 0:02:53.8]} 6... Nd5 {[%clk
0:02:51.1]} 7. d4 {[%clk 0:02:54.1]} 7... Nxc3 {[%clk 0:02:50]} 8. bxc3 {[%clk
0:02:55]} 8... O-O {[%clk 0:02:50]} 9. Bc4 {[%clk 0:02:54.1]} 9... c5 {[%clk
0:02:49.9]} 10. O-O {[%clk 0:02:52.6]} 10... cxd4 {[%clk 0:02:49.5]} 11. cxd4
{[%clk 0:02:52.3]} 11... Nc6 {[%clk 0:02:49.7]} 12. Be3 {[%clk 0:02:39.5]} 12...
Bf5 {[%clk 0:02:42]} 13. Ng5 {[%clk 0:02:32.6]} 13... e6 {[%clk 0:01:22.3]} 14.
g4 {[%clk 0:02:30.3]} 14... Na5 {[%clk 0:01:16.2]} 15. Be2 {[%clk 0:02:01]}
15... Bh6 {[%clk 0:01:02.5]} 16. Qd2 {[%clk 0:01:48.6]} 16... Rc8 {[%clk
0:00:41.4]} 17. gxf5 {[%clk 0:01:46.4]} 17... exf5 {[%clk 0:00:41.8]} 18. h4
{[%clk 0:01:08]} 18... Nc4 {[%clk 0:00:39.5]} 19. Bxc4 {[%clk 0:01:05.9]} 19...
Rxc4 {[%clk 0:00:40.4]} 20. Nf3 {[%clk 0:00:58.2]} 20... Bxe3+ {[%clk
0:00:37.3]} 21. Qxe3 {[%clk 0:00:58.3]} 21... Rxc2 {[%clk 0:00:37.2]} 22. Rac1
{[%clk 0:00:47.4]} 22... Qc7 {[%clk 0:00:34.1]} 23. Rxc2 {[%clk 0:00:45.5]}
23... Qxc2 {[%clk 0:00:35]} 24. Rf2 {[%clk 0:00:38.3]} 24... Qd1+ {[%clk
0:00:21.7]} 25. Kg2 {[%clk 0:00:34.9]} 25... Rc8 {[%clk 0:00:21.4]} 26. e6
{[%clk 0:00:28.5]} 26... Rc2 {[%clk 0:00:18.9]} 27. e7 {[%clk 0:00:25.3]} 27...
Rxf2+ {[%clk 0:00:12.9]} 28. Kxf2 {[%clk 0:00:25.1]} 28... Qc2+ {[%clk
0:00:09.8]} 29. Kg1 {[%clk 0:00:19.3]} 29... Qd1+ {[%clk 0:00:07.3]} 30. Kh2
{[%clk 0:00:18.9]} 30... Qc2+ {[%clk 0:00:06.2]} 31. Kh1 {[%clk 0:00:18.9]}
31... Qd1+ {[%clk 0:00:06]} 32. Ng1 {[%clk 0:00:18.6]} 1-0

[Event "Early-Titled-Tuesday-Blitz-February-27-2024"]
[Site "Chess.com"]
[Date "2024.02.27"]
[Round "11"]
[White "TioCridineno"]
[Black "Fjal"]
[Result "1-0"]
[WhiteElo "2401"]
[BlackElo "2257"]
[TimeControl "180+1"]
[EndTime "10:05:44 PST"]
[Termination "TioCridineno won on time"]

1. e4 {[%clk 0:03:00.9]} 1... d6 {[%clk 0:03:00.5]} 2. d4 {[%clk 0:03:00.9]}
2... Nf6 {[%clk 0:03:01]} 3. Nc3 {[%clk 0:03:01.5]} 3... g6 {[%clk 0:03:01.5]}
4. f4 {[%clk 0:03:01.7]} 4... Bg7 {[%clk 0:03:01.8]} 5. Nf3 {[%clk 0:03:02.4]}
5... O-O {[%clk 0:03:02.3]} 6. a3 {[%clk 0:03:02.5]} 6... Bg4 {[%clk 0:02:55.7]}
7. h3 {[%clk 0:03:02.3]} 7... Bxf3 {[%clk 0:02:55.6]} 8. Qxf3 {[%clk 0:03:03.2]}
8... e5 {[%clk 0:02:55.3]} 9. dxe5 {[%clk 0:02:58.8]} 9... dxe5 {[%clk
0:02:56.2]} 10. f5 {[%clk 0:02:59.4]} 10... Nc6 {[%clk 0:02:55.5]} 11. Bc4
{[%clk 0:02:56]} 11... Nd4 {[%clk 0:02:55.8]} 12. Qf2 {[%clk 0:02:55.8]} 12...
b5 {[%clk 0:02:50.4]} 13. Ba2 {[%clk 0:02:55.2]} 13... a5 {[%clk 0:02:44.7]} 14.
Bg5 {[%clk 0:02:53.3]} 14... b4 {[%clk 0:02:39.3]} 15. Nd5 {[%clk 0:02:52.1]}
15... gxf5 {[%clk 0:02:23.4]} 16. Nxf6+ {[%clk 0:02:46.2]} 16... Bxf6 {[%clk
0:02:22.8]} 17. Bxf6 {[%clk 0:02:45.4]} 17... Qxf6 {[%clk 0:02:22.4]} 18. exf5
{[%clk 0:02:40.9]} 18... bxa3 {[%clk 0:02:11.8]} 19. bxa3 {[%clk 0:02:39.5]}
19... Qxf5 {[%clk 0:01:02.6]} 20. O-O {[%clk 0:02:39]} 20... Qxf2+ {[%clk
0:01:02.4]} 21. Rxf2 {[%clk 0:02:39.9]} 21... Kg7 {[%clk 0:01:02.1]} 22. Rb1
{[%clk 0:02:31.6]} 22... f6 {[%clk 0:00:59]} 23. Rb7 {[%clk 0:02:30.8]} 23...
Rfc8 {[%clk 0:00:59.2]} 24. c3 {[%clk 0:02:23.9]} 24... Nc6 {[%clk 0:00:40.6]}
25. Bd5 {[%clk 0:02:23.3]} 25... Nd8 {[%clk 0:00:33.5]} 26. Rbb2 {[%clk
0:02:09.6]} 26... Rab8 {[%clk 0:00:32.4]} 27. c4 {[%clk 0:02:06.3]} 27... Nf7
{[%clk 0:00:21.6]} 28. Be6 {[%clk 0:01:56.8]} 28... Rd8 {[%clk 0:00:20.4]} 29.
Bd5 {[%clk 0:01:54.4]} 29... Nd6 {[%clk 0:00:19.9]} 30. Kh2 {[%clk 0:01:47.7]}
30... h6 {[%clk 0:00:16.5]} 31. h4 {[%clk 0:01:46.8]} 31... Kg6 {[%clk
0:00:16.8]} 32. Kh3 {[%clk 0:01:46.7]} 32... f5 {[%clk 0:00:16]} 33. g3 {[%clk
0:01:41.9]} 33... Kf6 {[%clk 0:00:15.8]} 34. c5 {[%clk 0:01:33.6]} 34... Ne8
{[%clk 0:00:14.5]} 35. Be4 {[%clk 0:01:33.8]} 35... Ng7 {[%clk 0:00:14.5]} 36.
Bc6 {[%clk 0:01:19]} 36... h5 {[%clk 0:00:12.6]} 37. Kg2 {[%clk 0:01:17.1]}
37... Ke6 {[%clk 0:00:12.1]} 38. a4 {[%clk 0:01:10.6]} 38... Ne8 {[%clk
0:00:11.3]} 39. Rb5 {[%clk 0:01:09.7]} 39... Nf6 {[%clk 0:00:10.3]} 40. Rxa5
{[%clk 0:01:08.1]} 40... Ng4 {[%clk 0:00:11]} 41. Re2 {[%clk 0:01:07.1]} 41...
Rb3 {[%clk 0:00:10.5]} 42. Bf3 {[%clk 0:01:06.5]} 42... Rdd3 {[%clk 0:00:08.8]}
43. Ra6+ {[%clk 0:01:03.8]} 43... Kf7 {[%clk 0:00:07.6]} 44. Bxg4 {[%clk
0:01:03.4]} 44... Rxg3+ {[%clk 0:00:07.5]} 45. Kf2 {[%clk 0:01:03.1]} 45... hxg4
{[%clk 0:00:06.9]} 46. Rxe5 {[%clk 0:01:03.3]} 46... Rbf3+ {[%clk 0:00:07]} 47.
Ke2 {[%clk 0:01:03.7]} 47... Rg2+ {[%clk 0:00:06.2]} 48. Ke1 {[%clk 0:01:04.1]}
48... Rc3 {[%clk 0:00:05.7]} 49. Rxf5+ {[%clk 0:01:03.7]} 49... Ke7 {[%clk
0:00:06.1]} 50. Kf1 {[%clk 0:01:00.1]} 50... Rc1+ {[%clk 0:00:05.6]} 51. Kxg2
{[%clk 0:00:59.1]} 1-0

[Event "Early-Titled-Tuesday-Blitz-February-27-2024"]
[Site "Chess.com"]
[Date "2024.02.27"]
[Round "11"]
[White "Ramla2020"]
[Black "dennisodessa"]
[Result "0-1"]
[WhiteElo "2400"]
[BlackElo "2597"]
[TimeControl "180+1"]
[EndTime "10:05:46 PST"]
[Termination "dennisodessa won by checkmate"]

1. c4 {[%clk 0:02:58.8]} 1... e5 {[%clk 0:02:59.6]} 2. g3 {[%clk 0:02:58.6]}
2... Nc6 {[%clk 0:03:00.1]} 3. Bg2 {[%clk 0:02:58.4]} 3... Bc5 {[%clk
0:03:00.8]} 4. e3 {[%clk 0:02:58.2]} 4... a6 {[%clk 0:02:59.6]} 5. Ne2 {[%clk
0:02:57.7]} 5... d6 {[%clk 0:02:59.7]} 6. Nbc3 {[%clk 0:02:57.1]} 6... Ba7
{[%clk 0:03:00.1]} 7. d4 {[%clk 0:02:55.5]} 7... Nf6 {[%clk 0:03:00.5]} 8. h3
{[%clk 0:02:51]} 8... O-O {[%clk 0:02:56.8]} 9. O-O {[%clk 0:02:50.7]} 9... Bf5
{[%clk 0:02:51.6]} 10. dxe5 {[%clk 0:02:37]} 10... dxe5 {[%clk 0:02:49.1]} 11.
Nd5 {[%clk 0:02:36.9]} 11... e4 {[%clk 0:02:38]} 12. g4 {[%clk 0:02:31.1]} 12...
Bg6 {[%clk 0:02:37.2]} 13. Nef4 {[%clk 0:02:30.3]} 13... Re8 {[%clk 0:02:27.1]}
14. b3 {[%clk 0:02:29.8]} 14... Ne5 {[%clk 0:02:19.4]} 15. Bb2 {[%clk
0:02:24.4]} 15... Nxd5 {[%clk 0:02:11]} 16. cxd5 {[%clk 0:02:19.4]} 16... Nd3
{[%clk 0:02:07.2]} 17. Nxd3 {[%clk 0:02:13.9]} 17... exd3 {[%clk 0:02:08.1]} 18.
e4 {[%clk 0:02:13.2]} 18... Bxe4 {[%clk 0:02:03]} 19. Bxe4 {[%clk 0:02:14.1]}
19... Rxe4 {[%clk 0:02:01.9]} 20. Qxd3 {[%clk 0:02:15]} 20... Qe7 {[%clk
0:01:54.3]} 21. Rac1 {[%clk 0:02:13.1]} 21... Re8 {[%clk 0:01:47.6]} 22. Qc3
{[%clk 0:02:11.2]} 22... Qg5 {[%clk 0:01:00.1]} 23. Qxc7 {[%clk 0:01:56.4]}
23... h5 {[%clk 0:00:44]} 24. Qxb7 {[%clk 0:01:34.5]} 24... hxg4 {[%clk
0:00:41.1]} 25. h4 {[%clk 0:01:34.2]} 25... Qxh4 {[%clk 0:00:33.7]} 26. Qxa7
{[%clk 0:01:26.4]} 26... g3 {[%clk 0:00:32.7]} 27. Kg2 {[%clk 0:01:09.3]} 27...
Qh2+ {[%clk 0:00:15.3]} 28. Kf3 {[%clk 0:01:08.7]} 28... Qh5+ {[%clk 0:00:15.4]}
29. Kg2 {[%clk 0:01:08.7]} 29... gxf2 {[%clk 0:00:16]} 30. Rc3 {[%clk
0:00:57.3]} 30... Rg4+ {[%clk 0:00:11.9]} 31. Rg3 {[%clk 0:00:57.4]} 31... Qxd5+
{[%clk 0:00:11.4]} 32. Kh2 {[%clk 0:00:30.5]} 32... Qd6 {[%clk 0:00:06.3]} 33.
Qxf2 {[%clk 0:00:28.8]} 33... Re2 {[%clk 0:00:06.6]} 34. Qxe2 {[%clk 0:00:22.9]}
34... Qxg3+ {[%clk 0:00:06]} 35. Kh1 {[%clk 0:00:22.6]} 35... Rh4+ {[%clk
0:00:06.9]} 36. Qh2 {[%clk 0:00:22.5]} 36... Rxh2# {[%clk 0:00:07.5]} 0-1

[Event "Early-Titled-Tuesday-Blitz-February-27-2024"]
[Site "Chess.com"]
[Date "2024.02.27"]
[Round "11"]
[White "TitarovVasiliYouTube"]
[Black "Better_Chess_Faster"]
[Result "1-0"]
[WhiteElo "2487"]
[BlackElo "2178"]
[TimeControl "180+1"]
[EndTime "10:05:47 PST"]
[Termination "TitarovVasiliYouTube won by checkmate"]

1. e4 {[%clk 0:02:58.4]} 1... Nf6 {[%clk 0:02:59.6]} 2. d3 {[%clk 0:02:54.8]}
2... e5 {[%clk 0:02:58.3]} 3. Nf3 {[%clk 0:02:54.4]} 3... Nc6 {[%clk 0:02:57]}
4. Nc3 {[%clk 0:02:54.2]} 4... d5 {[%clk 0:02:56.9]} 5. exd5 {[%clk 0:02:49.1]}
5... Nxd5 {[%clk 0:02:56.1]} 6. Be2 {[%clk 0:02:49.5]} 6... Be7 {[%clk
0:02:54.6]} 7. O-O {[%clk 0:02:49.6]} 7... O-O {[%clk 0:02:54.5]} 8. Re1 {[%clk
0:02:49.5]} 8... Re8 {[%clk 0:02:54.1]} 9. Bf1 {[%clk 0:02:44]} 9... Bf8 {[%clk
0:02:54.1]} 10. Bd2 {[%clk 0:02:43.5]} 10... h6 {[%clk 0:02:52.8]} 11. Nxd5
{[%clk 0:02:42.3]} 11... Qxd5 {[%clk 0:02:52.5]} 12. c4 {[%clk 0:02:42.2]} 12...
Qd6 {[%clk 0:02:50.2]} 13. Bc3 {[%clk 0:02:37.6]} 13... Bg4 {[%clk 0:02:48.8]}
14. h3 {[%clk 0:02:37.8]} 14... Bxf3 {[%clk 0:02:48.2]} 15. Qxf3 {[%clk
0:02:38.7]} 15... Rad8 {[%clk 0:02:39]} 16. Rad1 {[%clk 0:02:09.9]} 16... b6
{[%clk 0:02:34.1]} 17. a3 {[%clk 0:02:05.5]} 17... a5 {[%clk 0:02:30.5]} 18. g3
{[%clk 0:02:01.2]} 18... Nd4 {[%clk 0:02:29.3]} 19. Bxd4 {[%clk 0:01:57.6]}
19... Qxd4 {[%clk 0:02:27.9]} 20. Qe2 {[%clk 0:01:43]} 20... Bc5 {[%clk
0:02:23.5]} 21. Bg2 {[%clk 0:01:39.4]} 21... Kh8 {[%clk 0:02:09.2]} 22. Rf1
{[%clk 0:01:37]} 22... f5 {[%clk 0:02:06.9]} 23. Bc6 {[%clk 0:01:31.5]} 23...
Rf8 {[%clk 0:02:05.5]} 24. Qd2 {[%clk 0:00:43.9]} 24... f4 {[%clk 0:02:04.3]}
25. g4 {[%clk 0:00:43.6]} 25... f3 {[%clk 0:01:53.9]} 26. b4 {[%clk 0:00:41.6]}
26... Rf4 {[%clk 0:01:47.7]} 27. bxc5 {[%clk 0:00:32.9]} 27... Rxg4+ {[%clk
0:01:46.8]} 28. Kh1 {[%clk 0:00:32.9]} 28... Rh4 {[%clk 0:01:33.1]} 29. Bxf3
{[%clk 0:00:27.2]} 29... Rxh3+ {[%clk 0:01:32.1]} 30. Kg2 {[%clk 0:00:27.6]}
30... Rxf3 {[%clk 0:01:15.9]} 31. Kxf3 {[%clk 0:00:19.9]} 31... Rf8+ {[%clk
0:01:15.7]} 32. Kg3 {[%clk 0:00:17.3]} 32... Rf4 {[%clk 0:01:14.8]} 33. f3
{[%clk 0:00:16.2]} 33... Qd8 {[%clk 0:01:09.4]} 34. Qg2 {[%clk 0:00:11.6]} 34...
h5 {[%clk 0:01:03.8]} 35. Rh1 {[%clk 0:00:08.9]} 35... h4+ {[%clk 0:01:01.5]}
36. Kf2 {[%clk 0:00:08.1]} 36... Qd4+ {[%clk 0:01:01.7]} 37. Ke2 {[%clk
0:00:08.2]} 37... Qb2+ {[%clk 0:01:01.9]} 38. Rd2 {[%clk 0:00:08.6]} 38... Qxa3
{[%clk 0:00:54]} 39. Qg5 {[%clk 0:00:08.7]} 39... Qxc5 {[%clk 0:00:49.3]} 40.
Rxh4+ {[%clk 0:00:08.5]} 40... Rxh4 {[%clk 0:00:47.4]} 41. Qxh4+ {[%clk
0:00:09.4]} 41... Kg8 {[%clk 0:00:48]} 42. Qd8+ {[%clk 0:00:10.3]} 42... Kf7
{[%clk 0:00:47.1]} 43. Qd7+ {[%clk 0:00:10.5]} 43... Kg8 {[%clk 0:00:46.8]} 44.
Rd1 {[%clk 0:00:09.1]} 44... Qb4 {[%clk 0:00:43.1]} 45. Qe8+ {[%clk 0:00:09.4]}
45... Kh7 {[%clk 0:00:42.9]} 46. Rh1# {[%clk 0:00:09]} 1-0

[Event "Early-Titled-Tuesday-Blitz-February-27-2024"]
[Site "Chess.com"]
[Date "2024.02.27"]
[Round "11"]
[White "toninhojit"]
[Black "Roman_Ovetchkin"]
[Result "0-1"]
[WhiteElo "2467"]
[BlackElo "2591"]
[TimeControl "180+1"]
[EndTime "10:05:48 PST"]
[Termination "Roman_Ovetchkin won on time"]

1. d4 {[%clk 0:03:00.9]} 1... Nf6 {[%clk 0:02:59]} 2. c4 {[%clk 0:03:01.1]} 2...
c5 {[%clk 0:02:59.1]} 3. e3 {[%clk 0:02:59.4]} 3... cxd4 {[%clk 0:02:58.3]} 4.
exd4 {[%clk 0:03:00.3]} 4... d5 {[%clk 0:02:58.5]} 5. c5 {[%clk 0:02:59.4]} 5...
g6 {[%clk 0:02:53.7]} 6. Nf3 {[%clk 0:02:59.3]} 6... Bg7 {[%clk 0:02:54.1]} 7.
Bd3 {[%clk 0:02:53.3]} 7... O-O {[%clk 0:02:54.2]} 8. h3 {[%clk 0:02:53.3]} 8...
Nc6 {[%clk 0:02:53]} 9. O-O {[%clk 0:02:53.7]} 9... Ne4 {[%clk 0:02:51.1]} 10.
Nc3 {[%clk 0:02:50.4]} 10... Bf5 {[%clk 0:02:45.7]} 11. Re1 {[%clk 0:02:45.7]}
11... Nxc3 {[%clk 0:02:42.5]} 12. bxc3 {[%clk 0:02:45.4]} 12... Bxd3 {[%clk
0:02:43.1]} 13. Qxd3 {[%clk 0:02:46.3]} 13... b6 {[%clk 0:02:38.9]} 14. Qb5
{[%clk 0:02:37.7]} 14... Qd7 {[%clk 0:02:14.8]} 15. Ba3 {[%clk 0:02:34]} 15...
bxc5 {[%clk 0:02:06.6]} 16. Bxc5 {[%clk 0:02:32.1]} 16... Rfb8 {[%clk
0:02:04.3]} 17. Qa4 {[%clk 0:02:30.1]} 17... e6 {[%clk 0:02:03.4]} 18. Rab1
{[%clk 0:02:18.2]} 18... Rb7 {[%clk 0:02:01]} 19. Qa3 {[%clk 0:01:39.5]} 19...
Rab8 {[%clk 0:01:55.7]} 20. Rb3 {[%clk 0:01:40.1]} 20... Rxb3 {[%clk 0:01:32.5]}
21. axb3 {[%clk 0:01:41]} 21... a5 {[%clk 0:01:30.7]} 22. Qa4 {[%clk 0:01:32.3]}
22... Rb7 {[%clk 0:01:29.2]} 23. b4 {[%clk 0:01:00.6]} 23... Nxd4 {[%clk
0:01:10]} 24. Qxd7 {[%clk 0:00:57.3]} 24... Nxf3+ {[%clk 0:01:09.2]} 25. gxf3
{[%clk 0:00:57.9]} 25... Rxd7 {[%clk 0:01:09.6]} 26. Rc1 {[%clk 0:00:27.3]}
26... axb4 {[%clk 0:00:58]} 27. cxb4 {[%clk 0:00:28.2]} 27... Rb7 {[%clk
0:00:46]} 28. Bd6 {[%clk 0:00:22.1]} 28... h6 {[%clk 0:00:40.5]} 29. Rc8+ {[%clk
0:00:22.1]} 29... Kh7 {[%clk 0:00:40.4]} 30. Kf1 {[%clk 0:00:21.2]} 30... g5
{[%clk 0:00:40]} 31. Ke2 {[%clk 0:00:21.2]} 31... Kg6 {[%clk 0:00:39.9]} 32. Kd3
{[%clk 0:00:21.5]} 32... Kf5 {[%clk 0:00:38.9]} 33. Kc2 {[%clk 0:00:21.6]} 33...
Be5 {[%clk 0:00:37.2]} 34. Bc5 {[%clk 0:00:20.5]} 34... Kf4 {[%clk 0:00:36.1]}
35. Rf8 {[%clk 0:00:20.3]} 35... Kxf3 {[%clk 0:00:35.5]} 36. Kb3 {[%clk
0:00:16.9]} 36... Ke2 {[%clk 0:00:34.3]} 37. Ka4 {[%clk 0:00:17.3]} 37... d4
{[%clk 0:00:33.7]} 38. b5 {[%clk 0:00:17.8]} 38... d3 {[%clk 0:00:33.6]} 39. Bb4
{[%clk 0:00:08.5]} 39... Bf4 {[%clk 0:00:32.6]} 40. Rd8 {[%clk 0:00:04.4]} 40...
d2 {[%clk 0:00:32.5]} 0-1

[Event "Early-Titled-Tuesday-Blitz-February-27-2024"]
[Site "Chess.com"]
[Date "2024.02.27"]
[Round "11"]
[White "picturesquecheck"]
[Black "talaicito"]
[Result "1-0"]
[WhiteElo "2444"]
[BlackElo "2272"]
[TimeControl "180+1"]
[EndTime "10:05:48 PST"]
[Termination "picturesquecheck won on time"]

1. e4 {[%clk 0:03:00.9]} 1... c5 {[%clk 0:02:59.8]} 2. Nf3 {[%clk 0:03:00]} 2...
d6 {[%clk 0:02:59.9]} 3. d4 {[%clk 0:02:58.8]} 3... cxd4 {[%clk 0:03:00.8]} 4.
Nxd4 {[%clk 0:02:59.4]} 4... Nf6 {[%clk 0:03:01.7]} 5. Nc3 {[%clk 0:02:59.1]}
5... g6 {[%clk 0:03:02.6]} 6. Be3 {[%clk 0:02:57.3]} 6... Bg7 {[%clk 0:03:02.2]}
7. f3 {[%clk 0:02:57.8]} 7... O-O {[%clk 0:03:02.6]} 8. Qd2 {[%clk 0:02:57.7]}
8... Nc6 {[%clk 0:03:02.8]} 9. Bc4 {[%clk 0:02:57.4]} 9... Bd7 {[%clk
0:02:57.3]} 10. Bb3 {[%clk 0:02:57.4]} 10... Rc8 {[%clk 0:02:57.5]} 11. O-O-O
{[%clk 0:02:57]} 11... Nxd4 {[%clk 0:02:56.6]} 12. Bxd4 {[%clk 0:02:56.4]} 12...
b5 {[%clk 0:02:57.5]} 13. h4 {[%clk 0:02:55.5]} 13... a5 {[%clk 0:02:56.4]} 14.
h5 {[%clk 0:02:55.7]} 14... a4 {[%clk 0:02:35.1]} 15. Bxf6 {[%clk 0:02:54.4]}
15... Bxf6 {[%clk 0:02:16.8]} 16. e5 {[%clk 0:02:53.7]} 16... Bxe5 {[%clk
0:02:10]} 17. hxg6 {[%clk 0:02:47.9]} 17... axb3 {[%clk 0:01:38.9]} 18. Qh6
{[%clk 0:02:40.5]} 18... Bf4+ {[%clk 0:01:34]} 19. Qxf4 {[%clk 0:02:39.5]} 19...
fxg6 {[%clk 0:01:34.3]} 20. Qh4 {[%clk 0:02:30.3]} 20... Rf7 {[%clk 0:01:33.1]}
21. axb3 {[%clk 0:02:30.1]} 21... Qa5 {[%clk 0:01:24.4]} 22. Qd4 {[%clk
0:01:36.8]} 22... Bf5 {[%clk 0:00:42.4]} 23. Rd2 {[%clk 0:01:32.7]} 23... b4
{[%clk 0:00:33.4]} 24. Na4 {[%clk 0:01:30.1]} 24... Bd7 {[%clk 0:00:22.8]} 25.
Rh4 {[%clk 0:00:48.4]} 25... Bxa4 {[%clk 0:00:20.5]} 26. bxa4 {[%clk 0:00:49.3]}
26... Qxa4 {[%clk 0:00:20.6]} 27. b3 {[%clk 0:00:49.9]} 27... Qa3+ {[%clk
0:00:19.8]} 28. Qb2 {[%clk 0:00:49]} 28... Qa5 {[%clk 0:00:18.9]} 29. Rdd4
{[%clk 0:00:42.1]} 29... Qg5+ {[%clk 0:00:18.3]} 30. Kb1 {[%clk 0:00:35.2]}
30... Qxg2 {[%clk 0:00:18.7]} 31. Rxb4 {[%clk 0:00:34]} 31... Qg1+ {[%clk
0:00:14.1]} 32. Qc1 {[%clk 0:00:34]} 32... Qc5 {[%clk 0:00:11.6]} 33. Rhc4
{[%clk 0:00:32.1]} 33... Qf2 {[%clk 0:00:06]} 34. Rxc8+ {[%clk 0:00:31.7]} 34...
Kg7 {[%clk 0:00:06.5]} 35. Rc3 {[%clk 0:00:27.8]} 35... h5 {[%clk 0:00:03.1]}
36. Re4 {[%clk 0:00:22.7]} 36... h4 {[%clk 0:00:01.7]} 37. Re1 {[%clk
0:00:22.8]} 37... h3 {[%clk 0:00:01.4]} 38. Rh1 {[%clk 0:00:22.7]} 38... h2
{[%clk 0:00:01.6]} 39. Rd3 {[%clk 0:00:22.5]} 1-0